bitfinex/quotes_ETHUSD_20250821
["timestamp","ask_amount","ask_price","bid_price","bid_amount"]
[1755793646831,39.29129689,4253.0,4252.9,0.001]
[1755793647031,3.66,4252.9,4252.8,0.01939]
[1755793647227,35.14364221,4252.9,4252.8,0.01939]
[1755793647404,35.2602596,4252.9,4252.8,0.01939]
[1755793647612,39.16179959,4252.9,4252.8,0.01939]
[1755793648132,39.29224071,4252.9,4252.8,0.01939]
[1755793648316,37.62238034,4252.9,4252.8,0.01939]
[1755793648520,41.65438034,4252.9,4252.8,0.01939]
[1755793648721,41.65538034,4252.9,4252.8,0.01939]
[1755793648919,38.42251917,4252.9,4252.8,0.01939]
[1755793649233,41.82961316,4252.9,4252.8,0.01939]
[1755793649401,44.8068559,4252.9,4252.8,0.01939]
[1755793649599,44.18094989,4252.9,4252.8,0.01939]
[1755793649799,0.66,4252.6,4251.8,0.02]
[1755793650028,0.9506,4251.9,4251.8,0.02]
[1755793650234,40.35133236,4251.9,4251.8,0.02]
[1755793650435,3.66,4250.9,4250.8,0.02]
[1755793650631,40.5263743,4250.9,4250.8,0.02]
[1755793650806,41.08849867,4250.9,4250.8,0.02]
[1755793651006,42.37708728,4250.9,4250.8,0.02]
[1755793651333,41.6601556,4250.9,4250.8,0.02]
[1755793651631,42.50607229,4250.9,4248.8,0.02]
[1755793651842,3.66,4250.1,4248.8,0.02]
[1755793651999,3.2906,4249.9,4248.8,0.4726]
[1755793652201,36.31273963,4249.9,4248.8,0.02]
[1755793652411,36.77313963,4249.9,4248.8,0.02]
[1755793653334,39.12613617,4249.9,4248.8,0.02]
[1755793653535,36.77313963,4249.9,4248.8,0.02]
[1755793654100,0.66,4249.8,4248.8,0.02]
[1755793654302,0.9506,4248.9,4248.8,0.02]
[1755793654540,39.81944262,4248.9,4248.8,0.02]
[1755793654838,3.0,4248.5,4247.8,0.05192307]
[1755793655000,14.15890022,4247.9,4247.8,0.05192307]
[1755793655199,5.47,4247.9,4247.8,0.05192307]
[1755793655539,8.862,4247.9,4247.8,0.80432307]
[1755793655751,4.81,4247.9,4247.8,0.80432307]
[1755793655916,5.865,4247.9,4247.8,0.80432307]
[1755793656243,1.81,4248.5,4247.8,0.80432307]
[1755793656432,5.87884262,4248.4,4247.8,0.80432307]
[1755793656740,1.81,4248.3,4247.8,0.80432307]
[1755793656925,4.06884262,4248.2,4247.8,0.35172307]
[1755793657244,2.82253963,4249.9,4247.9,0.4526]
[1755793657452,35.87784262,4249.8,4247.9,0.4526]
[1755793657736,3.66,4249.6,4247.9,0.4526]
[1755793657953,3.0,4249.4,4247.9,0.4526]
[1755793658258,3.0,4249.2,4247.9,0.4526]
[1755793658414,3.0,4249.0,4247.9,0.4526]
[1755793658759,3.0,4248.8,4247.9,0.4526]
[1755793658960,3.0,4248.6,4247.8,0.05192307]
[1755793659251,35.87884262,4248.7,4247.8,0.05192307]
[1755793659252,3.0,4248.4,4247.8,0.05192307]
[1755793659461,4.06984262,4248.3,4247.8,0.05192307]
[1755793659958,4.055,4248.2,4247.9,0.4721]
[1755793660129,0.01384262,4248.1,4247.9,0.4721]
[1755793660325,0.01384262,4248.1,4248.0,0.3021]
[1755793661046,4.053,4248.1,4248.0,0.7742]
[1755793662215,0.01384262,4248.6,4248.0,0.7742]
[1755793662416,0.01384262,4248.6,4247.8,0.05192307]
[1755793662417,3.0,4248.4,4247.8,0.05192307]
[1755793662616,0.66,4248.0,4247.8,0.05192307]
[1755793662927,35.60814262,4247.9,4247.8,0.05192307]
[1755793663122,9.6543,4247.9,4247.8,0.05192307]
[1755793663327,20.97640022,4247.9,4247.8,0.05192307]
[1755793663537,23.07404024,4247.9,4247.8,0.05192307]
[1755793663718,53.07404024,4247.9,4247.8,0.05192307]
[1755793663917,55.42814462,4247.9,4247.8,0.05192307]
[1755793664117,55.42814462,4247.9,4246.8,0.02]
[1755793664118,3.66,4247.1,4246.8,0.02]
[1755793664335,0.7876,4246.9,4246.8,0.02]
[1755793664534,36.14973963,4246.9,4246.8,0.02]
[1755793664869,36.60033963,4246.9,4246.8,0.02]
[1755793665147,11.89713963,4246.9,4246.8,0.02]
[1755793665353,40.1131,4246.9,4246.8,0.02]
[1755793666058,40.1131,4246.9,4245.8,0.02]
[1755793666256,3.66,4246.7,4245.8,0.02]
[1755793666421,30.46644262,4246.8,4245.8,0.02]
[1755793666422,0.1242,4245.9,4245.8,0.02]
[1755793666621,39.0002,4245.9,4245.8,0.02]
[1755793666822,37.17313963,4245.9,4245.8,0.02]
[1755793667155,41.23713963,4245.9,4245.8,0.02]
[1755793667455,41.23813963,4245.9,4245.8,0.02]
[1755793667822,41.23713963,4245.9,4245.8,0.02]
[1755793668056,42.47073963,4245.9,4245.8,0.02]
[1755793668443,38.40673963,4245.9,4245.8,0.02]
[1755793668640,42.47473963,4245.9,4245.8,0.02]
[1755793669333,7.17313963,4245.9,4245.8,0.02]
[1755793669533,8.878,4245.9,4245.8,0.02]
[1755793669731,4.811,4245.9,4245.8,0.02]
[1755793669931,8.878,4245.9,4245.8,0.7942]
[1755793670120,4.811,4245.9,4245.8,0.7952]
[1755793670765,8.878,4245.9,4245.8,0.3231]
[1755793670933,9.7658,4245.9,4245.8,0.3231]
[1755793671325,5.6988,4245.9,4245.8,0.7952]
[1755793671641,1.811,4245.9,4245.8,0.7952]
[1755793672024,4.066,4245.9,4245.8,0.7952]
[1755793672430,1.811,4246.5,4245.8,0.7952]
[1755793672761,0.002,4246.9,4245.9,0.4721]
[1755793672931,0.002,4246.9,4246.8,0.3021]
[1755793673333,0.002,4246.9,4246.8,0.7742]
[1755793673956,0.002,4246.9,4246.1,0.4721]
[1755793674161,4.071,4246.8,4246.1,0.4721]
[1755793674367,0.01384262,4246.7,4246.1,0.4721]
[1755793674675,4.071,4246.7,4246.6,0.3021]
[1755793674828,4.071,4246.7,4246.6,0.7742]
[1755793675027,4.071,4246.7,4246.6,0.3021]
[1755793675225,4.071,4246.7,4246.6,0.7742]
[1755793675440,4.071,4246.7,4246.6,0.3021]
[1755793675660,0.002,4246.9,4246.6,0.7742]
[1755793675860,4.072,4246.9,4246.7,0.4721]
[1755793676065,0.002,4246.9,4246.8,0.7742]
[1755793676558,0.41068426,4246.9,4245.8,0.021]
[1755793676764,0.01384262,4246.8,4245.8,0.021]
[1755793677362,4.071,4246.7,4245.9,0.4721]
[1755793677578,0.01384262,4246.6,4245.9,0.4721]
[1755793677859,0.01384262,4246.6,4246.5,0.3021]
[1755793678062,0.002,4246.9,4246.5,0.3021]
[1755793678239,4.072,4246.8,4246.5,0.3021]
[1755793678444,0.01384262,4246.7,4246.5,0.3021]
[1755793678640,0.42262688,4246.7,4245.8,0.021]
[1755793679454,0.42262688,4246.7,4246.6,0.3021]
[1755793679455,0.01384262,4246.7,4246.6,0.3021]
[1755793679655,4.072,4246.9,4246.6,0.7742]
[1755793679870,4.072,4246.9,4246.7,0.4721]
[1755793679871,0.002,4246.9,4246.7,0.4721]
[1755793680236,0.002,4246.9,4245.8,0.021]
[1755793680237,0.01584262,4246.9,4246.1,0.4721]
[1755793680438,0.01584262,4246.9,4245.8,0.021]
[1755793680439,0.72442688,4246.9,4245.8,0.021]
[1755793681283,0.4606,4246.8,4245.8,0.021]
[1755793681583,0.01384262,4246.7,4245.8,0.021]
[1755793681891,3.0,4246.5,4245.8,0.021]
[1755793682038,1.82584262,4246.4,4245.8,0.021]
[1755793682237,3.88978426,4246.3,4245.8,0.021]
[1755793682473,0.01384262,4246.2,4245.8,0.021]
[1755793682652,4.071,4246.1,4245.8,0.021]
[1755793682848,0.01384262,4246.0,4245.8,0.021]
[1755793684849,0.88978426,4246.3,4245.8,0.021]
[1755793685053,1.812,4246.4,4245.8,0.021]
[1755793685054,4.07,4245.9,4245.8,0.021]
[1755793685352,0.01384262,4246.2,4245.8,0.021]
[1755793685554,4.07,4246.1,4245.8,0.021]
[1755793685756,0.01384262,4246.0,4245.8,0.021]
[1755793686143,1.812,4246.4,4245.9,0.7742]
[1755793686144,4.069,4246.2,4245.9,0.7742]
[1755793686342,1.812,4246.4,4246.0,0.4721]
[1755793686638,4.068,4246.2,4246.0,0.4721]
[1755793686867,4.068,4246.2,4245.8,0.021]
[1755793687036,4.068,4246.3,4246.1,0.7742]
[1755793687261,1.812,4246.4,4246.2,0.4721]
[1755793687464,4.068,4246.3,4246.2,0.4721]
[1755793687670,0.002,4246.9,4246.3,0.7702]
[1755793687876,4.067,4246.8,4246.3,0.3021]
[1755793688038,4.0553,4246.7,4245.8,0.021]
[1755793688241,0.01384262,4246.6,4245.8,0.021]
[1755793689678,4.067,4246.5,4245.9,0.49165213]
[1755793689882,4.08084262,4246.5,4246.4,0.3117]
[1755793690543,3.0,4246.5,4246.4,0.3117]
[1755793690949,7.066,4246.5,4246.4,0.7798]
[1755793691146,3.0,4246.5,4246.4,0.7798]
[1755793691363,4.065,4246.5,4246.4,0.7798]
[1755793691947,1.814,4246.9,4246.4,0.7798]
[1755793692168,1.814,4246.9,4246.5,0.4681]
[1755793692380,8.878,4246.9,4246.8,0.3117]
[1755793692581,4.814,4246.9,4246.8,0.3117]
[1755793692801,0.002,4246.9,4246.8,0.7798]
[1755793694264,0.002,4246.9,4246.8,1.4398]
[1755793694467,0.002,4247.4,4247.3,2.35443693]
[1755793694667,0.002,4247.4,4247.3,14.21798151]
[1755793694977,0.002,4247.4,4247.3,17.78013715]
[1755793695175,0.002,4247.4,4247.3,15.42570022]
[1755793695504,0.002,4247.4,4247.3,17.78013715]
[1755793696003,0.002,4247.4,4247.3,15.42570022]
[1755793696462,0.002,4247.4,4247.3,17.78013715]
[1755793697309,0.002,4247.4,4247.3,4.5574]
[1755793697515,0.002,4247.4,4247.3,1.73709436]
[1755793697811,0.002,4247.4,4247.3,1.61949436]
[1755793698179,0.002,4247.4,4247.3,0.7798]
[1755793699509,0.002,4247.4,4247.3,0.3117]
[1755793700681,0.002,4247.4,4246.9,0.4681]
[1755793701301,0.002,4247.4,4247.0,0.4681]
[1755793701487,0.002,4247.4,4247.3,0.3117]
[1755793701693,0.002,4247.4,4247.3,0.45803455]
[1755793701894,0.002,4247.4,4247.3,1.58613455]
[1755793702184,0.002,4247.4,4246.8,0.66]
[1755793702185,0.002,4247.4,4246.8,5.1881]
[1755793702397,0.002,4247.4,4246.8,4.5281]
[1755793702805,0.002,4247.4,4247.3,0.3117]
[1755793703235,0.002,4247.4,4247.3,0.7798]
[1755793704192,0.002,4247.4,4246.9,0.4681]
[1755793704409,0.002,4247.4,4246.9,1.12936182]
[1755793705338,0.002,4247.4,4246.9,0.66126182]
[1755793705541,0.002,4247.4,4247.0,0.4681]
[1755793705838,0.002,4247.4,4246.9,0.66126182]
[1755793706000,0.002,4247.4,4246.8,4.061]
[1755793709703,0.002,4247.4,4247.3,0.3117]
[1755793710858,0.002,4247.4,4246.9,3.0]
[1755793711255,0.002,4247.4,4246.9,3.4681]
[1755793711439,0.002,4247.4,4247.3,0.3117]
[1755793711818,0.002,4247.4,4247.3,0.7798]
[1755793712218,0.002,4247.4,4247.3,0.3117]
[1755793714632,0.002,4247.4,4247.3,0.80334436]
[1755793714832,0.002,4247.4,4247.3,1.77913509]
[1755793715344,0.002,4247.4,4247.3,1.75559073]
[1755793715643,0.002,4247.4,4247.3,1.4398]
[1755793716441,0.002,4247.4,4247.3,0.3117]
[1755793716640,0.002,4247.4,4247.3,0.7798]
[1755793717035,0.002,4247.4,4247.3,0.3117]
[1755793717242,0.002,4247.4,4247.3,1.46334436]
[1755793717452,0.002,4247.4,4247.3,1.85457636]
[1755793718378,0.002,4247.4,4247.3,5.89957636]
[1755793718557,0.002,4247.4,4247.3,5.876032]
[1755793719287,0.002,4248.3,4247.8,0.66]
[1755793719581,0.002,4248.3,4248.2,20.03352358]
[1755793719768,0.002,4248.3,4248.2,20.15112358]
[1755793719949,0.002,4248.3,4248.2,20.61792358]
[1755793720456,0.002,4248.3,4248.2,20.71227358]
[1755793721583,0.02,4248.8,4248.7,3.01366111]
[1755793721751,0.02,4248.8,4248.7,12.47522722]
[1755793722153,0.02,4248.8,4248.7,13.05962722]
[1755793722349,0.022,4248.8,4248.7,23.93691135]
[1755793723488,0.022,4248.8,4248.7,21.7569111]
[1755793723857,0.022,4248.8,4248.7,24.11057221]
[1755793724297,0.022,4248.8,4248.7,21.7569111]
[1755793724802,0.022,4248.8,4248.7,7.29522697]
[1755793724953,0.3365,4248.8,4248.7,5.858]
[1755793725349,0.022,4248.8,4248.7,5.858]
[1755793725557,0.022,4248.8,4248.7,6.1612]
[1755793725787,0.022,4248.8,4248.7,5.858]
[1755793725992,0.022,4248.8,4248.7,6.4438]
[1755793726700,0.022,4248.8,4248.7,7.407]
[1755793726867,0.022,4248.8,4248.7,10.22746111]
[1755793727077,0.022,4248.8,4248.7,13.22746111]
[1755793728860,0.022,4248.8,4248.7,13.63932361]
[1755793729559,0.4648,4250.8,4248.7,13.63932361]
[1755793729786,0.4648,4250.8,4249.7,3.01310727]
[1755793729995,0.4648,4250.8,4249.7,6.8182]
[1755793730201,0.4648,4250.8,4249.7,2.7732]
[1755793730357,0.4648,4250.8,4249.7,6.8182]
[1755793730565,0.4648,4250.8,4249.7,7.283]
[1755793730897,0.4648,4250.8,4249.7,7.8688]
[1755793731869,0.4648,4250.8,4249.7,10.22190727]
[1755793732160,0.4648,4250.8,4249.7,10.68870727]
[1755793732403,0.4648,4250.8,4249.7,8.3356]
[1755793732600,0.4648,4250.8,4249.7,7.8688]
[1755793733111,0.02,4250.8,4249.7,13.21990727]
[1755793733260,0.02,4250.8,4249.7,13.80430727]
[1755793733860,0.02,4250.8,4249.7,4.1682]
[1755793733861,0.3345,4249.8,4249.7,4.1682]
[1755793734060,0.3345,4249.8,4249.7,3.4648]
[1755793734673,0.3345,4249.8,4249.5,4.046]
[1755793734674,0.7793,4249.8,4249.5,4.046]
[1755793734887,0.4448,4249.7,4249.5,4.046]
[1755793735072,0.3145,4249.6,4249.5,4.046]
[1755793735274,0.02,4249.8,4249.5,4.046]
[1755793736761,0.3145,4249.6,4249.5,4.046]
[1755793737796,0.4668,4249.8,4249.5,4.046]
[1755793738097,0.3145,4249.6,4249.4,0.66]
[1755793738791,0.7593,4249.6,4249.4,0.66]
[1755793739999,0.3145,4249.6,4249.4,0.66]
[1755793740295,0.022,4249.8,4249.4,0.66]
[1755793740661,0.022,4249.8,4249.4,1.1048]
[1755793742764,0.022,4249.8,4249.4,1.85492359]
[1755793743106,0.022,4249.8,4249.7,3.9632]
[1755793743263,0.022,4249.8,4249.7,8.0012]
[1755793743908,0.022,4249.8,4249.7,3.0]
[1755793744117,0.3365,4249.8,4249.7,3.0]
[1755793744417,0.022,4249.8,4249.7,3.0]
[1755793745316,0.022,4249.8,4249.7,3.4448]
[1755793745614,0.7813,4249.8,4249.4,0.66]
[1755793745817,0.4448,4249.7,4249.4,0.66]
[1755793746118,0.4448,4249.7,4249.4,1.1048]
[1755793746420,0.022,4249.8,4249.4,1.1048]
[1755793746591,0.3145,4249.5,4249.4,0.4448]
[1755793746796,0.7593,4249.5,4249.3,4.038]
[1755793747586,0.7593,4249.5,4249.2,0.66]
[1755793748321,0.4384,4249.4,4248.9,4.038]
[1755793748518,0.022,4249.8,4248.9,4.038]
[1755793748704,0.4384,4249.4,4248.9,4.038]
[1755793749388,0.4604,4249.8,4248.9,4.038]
[1755793749590,0.022,4249.8,4249.0,0.68353494]
[1755793749815,0.022,4249.8,4249.3,0.66]
[1755793749997,0.022,4249.8,4249.3,4.698]
[1755793750192,0.022,4249.8,4249.3,7.51829163]
[1755793750517,0.022,4249.8,4249.4,0.75182916]
[1755793750720,0.022,4249.8,4249.3,4.698]
[1755793752083,0.3125,4249.4,4249.3,0.66]
[1755793752316,0.4604,4249.8,4248.7,0.1764359]
[1755793752622,0.022,4249.8,4249.2,0.66]
[1755793752920,0.022,4249.8,4249.4,0.66]
[1755793753152,0.022,4249.8,4249.7,3.30000727]
[1755793753429,0.022,4249.8,4249.7,10.36153834]
[1755793753601,0.022,4249.8,4249.7,7.698]
[1755793753921,0.022,4249.8,4249.7,4.038]
[1755793754134,0.022,4249.8,4249.3,4.29]
[1755793754135,0.7729,4249.8,4249.3,4.038]
[1755793754283,0.4384,4249.7,4249.3,4.038]
[1755793754487,0.3125,4249.4,4249.3,4.038]
[1755793754722,0.7509,4249.4,4248.8,0.001]
[1755793755524,0.7509,4249.4,4248.9,0.4384]
[1755793755686,0.3125,4249.4,4248.8,0.001]
[1755793755886,0.3125,4249.4,4248.8,0.02453605]
[1755793757213,0.022,4249.8,4248.9,2.35353653]
[1755793757401,0.022,4249.8,4249.0,4.06153494]
[1755793758286,0.022,4249.8,4249.0,4.038]
[1755793759951,0.4384,4249.7,4249.0,4.038]
[1755793760422,0.4384,4249.7,4249.1,0.02353439]
[1755793761020,0.4384,4249.7,4248.8,0.001]
[1755793761326,0.3125,4249.2,4248.8,0.001]
[1755793763409,0.4604,4249.8,4248.8,0.02453605]
[1755793763729,0.022,4249.8,4248.9,0.467]
[1755793763897,0.022,4249.8,4249.0,0.02353494]
[1755793764400,0.022,4249.8,4249.2,0.66]
[1755793764594,0.022,4249.8,4249.7,3.30000727]
[1755793764851,0.022,4249.8,4249.7,10.668008]
[1755793765144,0.022,4249.8,4249.7,24.95395207]
[1755793766239,0.022,4249.8,4249.7,8.31490073]
[1755793766436,0.022,4249.8,4249.7,7.698]
[1755793766825,0.022,4249.8,4249.7,7.9849]
[1755793767041,0.022,4249.8,4249.7,8.4519]
[1755793767765,0.022,4249.8,4249.7,10.80500727]
[1755793768255,0.022,4249.8,4249.7,10.92260727]
[1755793768423,0.022,4249.8,4249.7,11.58990466]
[1755793768819,0.022,4249.8,4249.7,11.12290466]
[1755793769016,0.022,4249.8,4249.7,8.36529739]
[1755793770364,0.3345,4249.8,4249.7,4.038]
[1755793770653,0.3345,4249.8,4249.5,4.038]
[1755793770654,0.7729,4249.8,4249.5,4.038]
[1755793770833,0.3345,4249.8,4249.5,4.038]
[1755793771241,0.7729,4249.8,4249.5,4.038]
[1755793771956,0.3345,4249.8,4249.5,4.038]
[1755793772252,0.4384,4249.7,4249.5,4.038]
[1755793772474,0.022,4249.8,4249.5,4.038]
[1755793772945,0.3125,4249.6,4249.5,4.038]
[1755793773536,0.7509,4249.6,4249.1,1.81]
[1755793773743,0.3125,4249.6,4249.2,4.037]
[1755793773944,0.4384,4249.5,4249.0,4.037]
[1755793774145,0.3125,4249.1,4249.0,4.037]
[1755793774359,0.3125,4249.1,4248.8,4.038]
[1755793775085,0.4384,4249.4,4248.8,4.038]
[1755793775982,0.4384,4249.4,4248.9,0.0235355]
[1755793776162,0.3067,4249.8,4248.9,0.0235355]
[1755793776340,0.01384262,4249.7,4248.8,4.038]
[1755793776978,0.51975426,4249.8,4248.9,0.0235355]
[1755793777285,0.022,4249.8,4249.0,3.0]
[1755793777438,0.022,4249.8,4249.1,0.02353439]
[1755793777642,0.022,4249.8,4249.3,3.0]
[1755793777865,0.022,4249.8,4249.4,0.02353273]
[1755793778168,0.0028,4249.5,4249.3,3.0]
[1755793778771,0.0028,4249.5,4249.2,4.037]
[1755793778978,0.2819,4249.4,4249.2,4.037]
[1755793779148,0.0056,4249.3,4249.2,4.037]
[1755793779343,0.0056,4249.3,4248.8,4.038]
[1755793779942,0.022,4249.8,4249.2,0.3031]
[1755793780143,0.022,4249.8,4249.2,4.3401]
[1755793782166,0.022,4249.8,4249.3,0.02353328]
[1755793782348,0.022,4249.8,4249.2,4.3401]
[1755793782349,0.4666,4249.8,4249.2,4.037]
[1755793783568,0.022,4249.8,4249.3,0.02353328]
[1755793783773,0.022,4249.8,4249.3,0.47476661]
[1755793784266,0.022,4249.8,4249.7,0.3031]
[1755793785775,0.022,4249.8,4249.7,0.7549]
[1755793786143,0.022,4249.8,4249.7,0.02353107]
[1755793786542,0.022,4249.8,4249.7,0.32663107]
[1755793786738,0.022,4249.8,4249.7,0.76299418]
[1755793787152,0.022,4249.8,4249.7,0.73946311]
[1755793787348,0.022,4249.8,4249.7,0.76299418]
[1755793787549,0.022,4249.8,4249.7,0.73946311]
[1755793787758,0.022,4249.8,4249.7,0.76299418]
[1755793788468,0.022,4249.8,4249.7,1.21479418]
[1755793788668,0.022,4249.8,4249.7,0.73946311]
[1755793788851,0.022,4249.8,4249.7,0.43636311]
[1755793789644,0.022,4249.8,4249.7,0.73946311]
[1755793789851,0.022,4249.8,4249.7,0.43636311]
[1755793790047,0.3173,4249.8,4249.7,0.43636311]
[1755793790253,0.3173,4249.8,4249.6,4.037]
[1755793790487,0.7619,4249.8,4249.6,4.037]
[1755793791355,0.3173,4249.8,4249.6,4.037]
[1755793791557,0.3173,4249.8,4249.3,4.036]
[1755793793157,0.022,4249.8,4249.3,4.036]
[1755793793362,0.022,4249.8,4249.4,0.5846]
[1755793793565,0.022,4249.8,4249.7,0.3031]
[1755793794999,0.022,4249.8,4249.5,0.02353218]
[1755793795164,0.3173,4249.8,4248.9,4.036]
[1755793795370,0.022,4249.8,4249.0,0.87903494]
[1755793795963,0.022,4249.8,4249.0,0.8555]
[1755793796374,0.022,4249.8,4249.7,0.3031]
[1755793797041,0.022,4249.8,4249.7,3.79153834]
[1755793797176,0.022,4249.8,4249.7,1.43843107]
[1755793797378,0.022,4249.8,4249.7,2.084751]
[1755793798124,0.022,4249.8,4249.7,2.10828207]
[1755793798480,0.022,4249.8,4249.7,2.084751]
[1755793799006,0.022,4249.8,4249.7,6.120751]
[1755793799577,0.022,4249.8,4249.7,8.47385827]
[1755793799876,0.022,4249.8,4249.7,6.120751]
[1755793800333,0.3173,4249.8,4249.7,4.705851]
[1755793800477,0.022,4249.8,4249.7,4.036]
[1755793800826,0.022,4249.8,4249.7,4.3391]
[1755793801606,0.022,4249.8,4249.7,8.02263107]
[1755793801912,0.022,4249.8,4249.7,14.78969877]
[1755793802078,0.022,4249.8,4249.7,4.3391]
[1755793802275,0.3173,4249.8,4249.7,4.035]
[1755793802693,0.7619,4249.8,4249.4,4.035]
[1755793802874,0.4446,4249.7,4249.4,4.035]
[1755793803094,0.2953,4249.5,4249.4,4.035]
[1755793803493,0.7399,4249.5,4249.4,4.035]
[1755793803698,0.7399,4249.5,4248.8,0.001]
[1755793803924,0.45844262,4249.4,4248.8,0.001]
[1755793804253,0.2953,4248.9,4248.8,0.001]
[1755793804435,0.022,4249.8,4248.8,4.036]
[1755793804610,0.022,4249.8,4249.4,0.66]
[1755793804810,0.022,4249.8,4248.9,2.2853355]
[1755793804811,0.022,4249.8,4249.7,6.31620727]
[1755793805011,0.022,4249.8,4249.7,8.12620727]
[1755793805213,0.022,4249.8,4249.7,8.57800727]
[1755793805409,0.52368457,4252.8,4250.7,3.01255369]
[1755793805659,0.02,4252.8,4251.7,3.01200037]
[1755793805975,0.02,4252.8,4252.7,3.01144731]
[1755793806261,0.02,4252.8,4252.7,9.83161447]
[1755793806468,0.02,4252.8,4252.7,12.61134731]
[1755793806947,0.02,4252.8,4252.7,12.78636348]
[1755793807122,0.02,4253.8,4252.7,11.0248118]
[1755793807324,0.02,4253.8,4253.7,3.66]
[1755793807546,0.02,4253.8,4253.7,8.02160894]
[1755793807723,0.02,4253.8,4253.7,8.448]
[1755793807943,0.02,4253.8,4253.7,10.79889451]
[1755793808243,0.02,4253.8,4253.7,9.04925537]
[1755793808457,0.02,4253.8,4253.7,4.694]
[1755793808748,0.02,4253.8,4253.7,5.4353]
[1755793808947,0.318,4253.8,4253.7,4.034]
[1755793809123,0.02,4253.8,4253.7,4.034]
[1755793809529,0.7521,4253.8,4253.5,1.81]
[1755793809715,0.7521,4253.8,4253.7,4.034]
[1755793809916,0.318,4253.8,4253.7,4.034]
[1755793810118,0.7521,4253.8,4253.7,4.034]
[1755793811123,0.7521,4253.8,4253.5,4.034]
[1755793811356,0.4341,4253.7,4253.5,4.034]
[1755793811562,0.298,4253.6,4253.2,4.033]
[1755793811733,0.01384262,4253.5,4253.0,4.033]
[1755793811938,0.298,4253.1,4253.0,4.033]
[1755793812266,0.298,4253.1,4252.8,4.033]
[1755793812624,0.02,4253.8,4252.8,4.033]
[1755793812819,0.02,4253.8,4253.0,2.35126543]
[1755793813023,0.02,4253.8,4253.2,0.66]
[1755793813252,0.02,4253.8,4253.4,0.66]
[1755793813458,0.02,4253.8,4253.7,0.2914]
[1755793813658,0.02,4253.8,4253.7,6.82659446]
[1755793813842,0.02,4253.8,4253.7,7.37058552]
[1755793814372,0.02,4253.8,4253.7,7.033]
[1755793814536,0.02,4253.8,4253.7,7.3244]
[1755793814740,0.02,4253.8,4253.7,7.033]
[1755793815264,0.02,4253.8,4253.7,10.33529451]
[1755793815436,0.02,4253.8,4253.7,10.78519451]
[1755793815631,0.02,4253.8,4253.7,8.4343]
[1755793815844,0.02,4253.8,4253.7,7.033]
[1755793816458,0.02,4253.8,4253.7,7.7743]
[1755793816757,0.02,4253.8,4253.7,7.3244]
[1755793816969,0.02,4253.8,4253.7,7.033]
[1755793817163,0.02,4253.8,4253.7,7.3244]
[1755793817370,0.02,4253.8,4253.7,11.51763451]
[1755793817773,0.02,4253.8,4253.7,11.63523451]
[1755793818131,0.02,4253.8,4253.7,8.83444]
[1755793818332,0.02,4253.8,4253.7,7.8106]
[1755793818572,0.02,4253.8,4253.7,4.1506]
[1755793818932,0.02,4253.8,4253.7,4.033]
[1755793819542,0.02,4253.8,4253.1,1.809]
[1755793819729,0.02,4253.8,4253.2,6.38315961]
[1755793819932,0.02,4253.8,4253.4,0.66]
[1755793820133,0.02,4253.8,4253.5,4.032]
[1755793820337,0.298,4253.6,4253.5,4.032]
[1755793820537,0.7321,4253.6,4253.5,4.032]
[1755793821577,0.7321,4253.6,4253.3,4.034]
[1755793821885,0.02,4253.8,4253.5,0.2914]
[1755793822053,0.02,4253.8,4253.3,4.6183]
[1755793822054,0.02,4253.8,4253.6,4.034]
[1755793822259,0.02,4253.8,4253.7,0.02350894]
[1755793822473,0.02,4253.8,4253.7,0.2914]
[1755793822690,0.02,4253.8,4253.7,0.76480894]
[1755793822894,0.02,4253.8,4253.7,0.79478983]
[1755793823090,0.02,4253.8,4253.7,0.77128089]
[1755793823295,0.02,4253.8,4253.6,4.034]
[1755793823511,0.7521,4253.8,4253.6,4.034]
[1755793823694,0.02,4253.8,4253.6,4.034]
[1755793824101,0.02,4253.8,4253.7,0.2914]
[1755793824481,0.02,4253.8,4253.7,3.77570345]
[1755793824680,0.02,4253.8,4253.7,7.53316486]
[1755793825587,0.02,4253.8,4253.7,4.73237035]
[1755793826083,0.318,4253.8,4253.7,3.0]
[1755793826289,0.318,4253.8,4253.6,4.034]
[1755793826505,0.318,4253.8,4253.2,4.29]
[1755793826506,0.7521,4253.8,4253.3,3.0]
[1755793826686,0.4341,4253.7,4253.4,4.034]
[1755793827200,0.298,4253.5,4253.4,4.034]
[1755793827518,0.02,4253.8,4253.4,4.034]
[1755793828336,0.4341,4253.7,4253.4,4.034]
[1755793828630,0.02,4253.8,4253.4,4.034]
[1755793829000,0.02,4253.8,4253.4,4.6183]
[1755793829197,0.02,4253.8,4253.5,0.4499]
[1755793829392,0.02,4253.8,4253.7,0.2914]
[1755793829591,0.02,4253.8,4253.7,4.9854]
[1755793830301,0.02,4253.8,4253.7,7.78619451]